[Event "15th Chennai GM Open 2025"]
[Site "Chennai"]
[Date "2025.01.03"]
[Round "3.4"]
[White "Das, Sayantan"]
[Black "Patil Priyanshu"]
[Result "1-0"]
[ECO "E60"]
[WhiteElo "2434"]
[BlackElo "2298"]
[Annotator "TA"]
[PlyCount "133"]
[EventDate "2025.01.02"]
[EventType "swiss"]
[EventCountry "IND"]
[SourceTitle "playchess.com"]
[Source "ChessBase"]
[SourceQuality "1"]
[TimeControl "5400+30"]

{[%evp 16,133,29,16,34,2,12,25,6,12,11,12,68,63,45,48,51,49,51,48,52,3,108,112,291,126,110,121,111,121,105,97,107,111,97,112,127,81,123,111,121,114,114,103,97,99,109,102,112,104,114,114,114,114,118,114,114,109,114,114,120,114,114,112,132,132,130,112,112,112,112,110,117,119,173,173,173,173,173,173,173,173,173,173,173,173,173,160,160,63,173,148,166,166,166,166,166,166,166,166,166,115,180,180,180,173,190,190,190,190,29948,6444,29964,4935,29984,29981,29981,29982,29984,29985]} 1. Nf3 {[%emt 0:01:27]} d5 {[%emt 0:03:21]} 2. b3 {[%emt 0:00:50]} c5 {[%emt 0:00:47]} 3. e3 {[%emt 0:01:06]} Nf6 {[%emt 0:00:12]} 4. Bb2 {[%emt 0:00:08]} g6 {[%emt 0:00:16]} 5. c4 {[%emt 0:01:20]} dxc4 {[%emt 0:01:01]} 6. Bxc4 {[%emt 0:08:08]} Bg7 {[%emt 0:00:02]} 7. O-O {[%emt 0:01:01]} O-O {[%emt 0:00:03]} 8. d4 {[%emt 0:02:35]} cxd4 {[%emt 0:00:02]} 9. Nxd4 {[%emt 0:00:26]} a6 {[%emt 0:00:01]} 10. Be2 {[%emt 0:02:36]} Bd7 {[%emt 0:03:55]} 11. Nd2 {[%emt 0:08:25][%cal Bb1d2,Bd2c4,Bc4e5][%mdl 32]} Nc6 {[%emt 0:03:49]} 12. Bf3 {[%emt 0:00:40]} Rc8 {[%emt 0:07:57]} 13. Rc1 {[%emt 0:03:57]} Nb4 {[%emt 0:16:33]} ({Better is} 13... Nxd4 $11 14. Bxd4 Bg4) 14. Nc4 $14 {[%emt 0:20:53]} b5 {[%emt 0:24:14]} 15. Ne5 {[%emt 0:01:05]} Rxc1 {[%emt 0:05:05]} 16. Qxc1 {[%emt 0:02:13]} Nfd5 {[%emt 0:02:53]} 17. Nxd7 {[%emt 0:06:17]} Qxd7 {[%emt 0:00:11]} 18. Rd1 {[%emt 0:00:35]} (18. Qb1 $14 {feels stronger.}) 18... e5 {[%emt 0:07:33]} (18... Nxa2 $11 {keeps the balance.} 19. Qa1 Ndb4 (19... Nab4 20. Ne2 $16)) 19. Nc2 $16 {[%emt 0:11:36]} Qc6 $2 {[%emt 0:14:44]} (19... Rc8 20. Nxb4 Rxc1 21. Bxc1) (19... Qe6 $16 {was worth a try.}) 20. a3 {[%emt 0:07:57]} (20. Ba3 $18 Nxa2 21. Bxd5 Qxd5 22. Qb1 (22. Rxd5 Nxc1 23. Bxc1 Rc8 $18) (22. Bxf8 Qxb3 23. Qb1 Qxb1 $18)) 20... Qxc2 {[%emt 0:02:53]} 21. Qxc2 {[%emt 0:00:10]} (21. Bxd5 $6 Qxc1 22. Bxc1 Nxd5 23. Rxd5 Rc8 $11) 21... Nxc2 {[%emt 0:00:04]} 22. Bxd5 {[%emt 0:00:30] This pair of bishops is nice.} e4 {[%emt 0:01:54]} 23. Bxg7 {[%emt 0:06:55]} ({Resist} 23. Bxe4 Bxb2 24. Bxc2 Bxa3 $11) 23... Kxg7 {[%emt 0:00:02]} 24. Bxe4 {[%emt 0:00:14]} Nxa3 {[%emt 0:00:03][%mdl 4096] Endgame KRB-KRN} 25. Rd7 {[%emt 0:00:18]} a5 {[%emt 0:01:59]} 26. Ra7 {[%emt 0:01:35] White is more active.} (26. g4 $142) 26... a4 {[%emt 0:01:27]} 27. bxa4 {[%emt 0:00:11]} bxa4 {[%emt 0:00:06]} 28. Rxa4 {[%emt 0:00:55]} Nb5 {[%emt 0:00:02]} 29. Rb4 {[%emt 0:01:05]} Nd6 {[%emt 0:00:04]} 30. Bd5 {[%emt 0:02:00]} Rc8 {[%emt 0:01:19][%cal Rc8c1]} 31. g4 {[%emt 0:00:00]} Rc7 {[%emt 0:01:05]} 32. Kg2 {[%emt 0:00:49]} h6 {[%emt 0:01:03]} 33. h3 {[%emt 0:02:51]} Re7 {[%emt 0:01:17]} 34. Kf1 {[%emt 0:03:11]} Rc7 {[%emt 0:00:49]} 35. Rb8 {[%emt 0:00:58]} Rc1+ {[%emt 0:00:16]} 36. Kg2 {[%emt 0:00:36]} Rc7 {[%emt 0:00:20]} 37. Rd8 {[%emt 0:01:04]} Nc4 {[%emt 0:00:13]} 38. Kg3 {[%emt 0:00:32]} Nb6 {[%emt 0:00:32]} 39. Bg2 {[%emt 0:00:28]} Nc4 {[%emt 0:00:16]} 40. h4 {[%emt 0:00:55][%cal Bh3h4,Bh4g5][%mdl 32]} Ne5 {[%emt 0:00:54]} 41. Re8 {[%emt 0:01:33]} Nd7 {[%emt 0:00:38]} 42. g5 {[%emt 0:00:26]} hxg5 {[%emt 0:00:13]} 43. hxg5 {[%emt 0:00:01]} Nc5 {[%emt 0:00:37]} 44. Bd5 {[%emt 0:00:20]} Nb7 {[%emt 0:00:42]} (44... Na4 $16) 45. e4 $18 {[%emt 0:00:31]} Rd7 {[%emt 0:00:20]} 46. f3 {[%emt 0:00:32]} Nd6 {[%emt 0:00:27]} 47. Rb8 {[%emt 0:00:21]} Re7 {[%emt 0:00:28]} 48. Kg4 {[%emt 0:01:26]} Ne8 {[%emt 0:00:47]} 49. Bc6 {[%emt 0:00:25]} Nd6 {[%emt 0:00:08]} 50. Kf4 {[%emt 0:00:34]} Nc4 {[%emt 0:00:14]} 51. Rd8 {[%emt 0:00:32]} Ne5 {[%emt 0:00:12]} 52. Bb5 {[%emt 0:00:40]} (52. Bd5 $16) 52... Re6 {[%emt 0:01:16]} (52... f6 $1 $14) 53. Kg3 {[%emt 0:00:29]} Rb6 {[%emt 0:00:47]} 54. Rd5 {[%emt 0:00:31]} Nc6 {[%emt 0:00:01] [#]} 55. Bc4 $1 {[%emt 0:00:36]} Rb7 {[%emt 0:00:11]} 56. Rc5 {[%emt 0:00:06]} Nd4 {[%emt 0:00:42]} 57. f4 {[%emt 0:00:32]} Ra7 {[%emt 0:01:11] [#]} 58. Kg4 {[%emt 0:00:35]} (58. Bd5 $1 $18) 58... Re7 {[%emt 0:00:43]} (58... Nc2 $16) 59. Bd5 {[%emt 0:00:12]} Ne6 {[%emt 0:00:24]} 60. Rc6 {[%emt 0:00:53] and f5 should not be overlooked} Nc7 {[%emt 0:00:04]} 61. f5 {[%emt 0:00:20]} gxf5+ {[%emt 0:00:44]} 62. exf5 {[%emt 0:00:19][%cal Be4f5,Bf5f6,Bf6g7][%mdl 32] White threatens f6+ and mate.} ({Not} 62. Kxf5 Nb5 $14) 62... Rd7 $2 {[%emt 0:00:50]} (62... Nxd5 $18 63. f6+ Kf8) 63. f6+ {[%emt 0:00:13]} Kg8 {[%emt 0:00:18]} 64. Bc4 {[%emt 0:00:43]} (64. Bb3 $142 Kf8 65. Kh5 Ne8 66. Rc8 Rc7 67. Rb8 Ra7 68. Bc4 Ra3 69. Bb5 Rh3+ 70. Kg4) 64... Kh7 {[%emt 0:00:22]} 65. Kh5 {[%emt 0:00:27]} Ne8 {[%emt 0:00:41] [#]} 66. Bxf7 $1 {[%emt 0:00:30][%mdl 512]} Ng7+ {[%emt 0:00:07]} (66... Nxf6+ 67. Rxf6) 67. fxg7 {[%emt 0:00:22]} 1-0

[Event "15th Chennai GM Open 2025"]
[Site "Chennai"]
[Date "2025.01.03"]
[Round "3.6"]
[White "Vaz, Ethan"]
[Black "Ratnakaran, K.."]
[Result "1-0"]
[ECO "C04"]
[WhiteElo "2412"]
[BlackElo "2225"]
[Annotator "TA"]
[PlyCount "73"]
[EventDate "2025.01.02"]
[EventType "swiss"]
[EventCountry "IND"]
[SourceTitle "playchess.com"]
[Source "ChessBase"]
[SourceQuality "1"]
[TimeControl "5400+30"]

{[%evp 11,73,35,42,36,45,33,138,133,155,163,167,157,163,108,112,110,183,188,180,165,152,136,173,166,390,402,337,86,80,68,64,70,73,55,78,84,92,80,287,272,313,234,361,358,368,363,414,433,532,528,616,604,611,611,626,626,29986,29987,29987,29988,29988,29989,29989,29989]} 1. e4 {[%emt 0:00:20]} e6 {[%emt 0:00:07]} 2. d4 {[%emt 0:00:50]} d5 {[%emt 0:00:06]} 3. Nd2 {[%emt 0:00:03]} Nc6 {[%emt 0:00:06]} 4. Ngf3 {[%emt 0:00:28]} Nf6 {[%emt 0:00:07]} 5. e5 {[%emt 0:00:31]} Nd7 {[%emt 0:00:07]} 6. Nb3 {[%emt 0:02:08]} a5 {[%emt 0:00:23]} 7. a4 {[%emt 0:01:58]} f6 {[%emt 0:00:07]} 8. Bb5 {[%emt 0:09:22]} Nb6 {[%emt 0:15:54]} ({Black should try} 8... fxe5 $14 9. dxe5 Be7) 9. O-O $16 {[%emt 0:11:20]} Bd7 {[%emt 0:00:16]} 10. exf6 {[%emt 0:05:10]} Qxf6 {[%emt 0:00:42]} 11. Bg5 {[%emt 0:00:57]} Qf5 {[%emt 0:05:48]} 12. Qe2 {[%emt 0:15:43] Dodges Nc4} ({White should try} 12. Bh4 $18) 12... Bd6 {[%emt 0:03:24]} 13. Nc5 {[%emt 0:01:33]} Bxc5 {[%emt 0:05:24]} (13... Bc8 $16) 14. dxc5 $18 {[%emt 0:01:06]} Nc8 {[%emt 0:00:20]} 15. Bh4 {[%emt 0:05:21]} N8a7 {[%emt 0:00:50]} 16. Bg3 {[%emt 0:02:48]} O-O-O {[%emt 0:04:00][%cal Ba8d8,Bd8f8,Bf8f4][%mdl 32]} 17. c3 {[%emt 0:06:15]} g5 $2 {[%emt 0:05:31]} (17... e5 18. Nxe5 (18. Bxe5 Rhe8 $11) 18... Nxe5) 18. Bd3 {[%emt 0:05:03]} Qf6 {[%emt 0:01:04]} 19. Be5 $2 {[%emt 0:01:59]} (19. b4 $18 {is the precise move to win.}) 19... Nxe5 $16 {[%emt 0:01:30]} 20. Qxe5 {[%emt 0:01:23]} Qxe5 {[%emt 0:09:32]} 21. Nxe5 {[%emt 0:00:02]} Rdf8 {[%emt 0:00:09] Repels Nf7} 22. Rfe1 {[%emt 0:03:34][%cal Od3b5,Bf1e1,Be1e2,Be2b2][%mdl 32]} Rf4 {[%emt 0:12:13]} 23. g3 {[%emt 0:02:54]} Rf6 {[%emt 0:03:12]} 24. Bb5 {[%emt 0:06:17] White is much more active.} c6 $2 {[%emt 0:08:23]} (24... Nc6 $16 {was necessary.}) 25. Bd3 $18 {[%emt 0:00:40]} Rhf8 {[%emt 0:05:33]} 26. Re2 {[%emt 0:00:41]} h5 {[%emt 0:02:36]} (26... Kc7 $142 27. Bxh7 Nc8) 27. b4 {[%emt 0:01:12]} axb4 {[%emt 0:00:05]} 28. cxb4 {[%emt 0:00:29]} Be8 {[%emt 0:00:13]} 29. Rb2 {[%emt 0:02:16]} Kb8 {[%emt 0:09:39]} 30. b5 {[%emt 0:01:06]} cxb5 {[%emt 0:00:03]} 31. axb5 {[%emt 0:00:12]} b6 {[%emt 0:00:04]} 32. cxb6 {[%emt 0:04:27][%cal Bc5b6,Bb6b7][%mdl 32]} Nc8 {[%emt 0:00:06]} 33. Nc6+ {[%emt 0:00:47]} Kb7 {[%emt 0:00:21]} 34. Nd8+ {[%emt 0:02:26]} Kb8 {[%emt 0:01:11]} 35. b7 {[%emt 0:00:29]} Nb6 {[%emt 0:00:03]} 36. Rba2 {[%emt 0:00:47]} Kc7 {[%emt 0:01:16]} 37. Rc1+ {[%emt 0:00:18]} 1-0

[Event "15th Chennai GM Open 2025"]
[Site "Chennai"]
[Date "2025.01.03"]
[Round "3.7"]
[White "Kaustuv, Kundu"]
[Black "Buscara, Sevan"]
[Result "1-0"]
[ECO "A11"]
[WhiteElo "2409"]
[BlackElo "2185"]
[Annotator "TA"]
[PlyCount "99"]
[EventDate "2025.01.02"]
[EventType "swiss"]
[EventCountry "IND"]
[SourceTitle "playchess.com"]
[Source "ChessBase"]
[SourceQuality "1"]
[TimeControl "5400+30"]

{[%evp 13,99,14,17,16,45,37,31,27,72,66,58,58,116,118,107,94,121,125,114,119,122,33,152,108,155,149,178,157,251,251,259,222,258,254,321,307,312,308,375,373,596,600,575,572,543,270,247,258,273,273,273,273,273,273,273,273,328,210,328,244,244,244,664,664,623,623,623,523,523,523,516,465,29978,29979,29979,29979,29980,29981,29981,29981,29982,29983,29988,29989,29990,29991,29992,29990]} 1. Nf3 {[%emt 0:10:46]} d5 {[%emt 0:01:12]} 2. g3 {[%emt 0:00:07]} Bg4 {[%emt 0:00:56]} 3. Bg2 {[%emt 0:00:09]} c6 {[%emt 0:00:55]} 4. c4 {[%emt 0:01:56]} Nd7 {[%emt 0:13:56]} 5. cxd5 {[%emt 0:02:02]} cxd5 {[%emt 0:03:00]} 6. Nc3 {[%emt 0:00:06]} e6 {[%emt 0:01:34]} 7. O-O {[%emt 0:00:35]} Ngf6 {[%emt 0:01:36]} 8. Qb3 {[%emt 0:00:35]} Bxf3 {[%emt 0:01:52]} 9. Bxf3 {[%emt 0:00:08]} Qb6 {[%emt 0:05:19] [#]} 10. d4 $1 {[%emt 0:00:16]} Rc8 {[%emt 0:14:12]} (10... Qxb3 11. axb3) 11. e4 $1 {[%emt 0:07:08]} dxe4 {[%emt 0:05:20]} 12. Nxe4 {[%emt 0:00:17]} Nd5 {[%emt 0:04:54]} ({Black should play} 12... Be7 $14) 13. Nc3 $16 {[%emt 0:01:22]} Nxc3 {[%emt 0:04:10]} 14. bxc3 {[%emt 0:00:07]} Qxb3 {[%emt 0:01:41]} 15. axb3 {[%emt 0:00:06][%cal Ba2b3,Bb3b4,Bb4b5,Bb5b6,Bb6b7][%mdl 32]} Rxc3 {[%emt 0:00:24]} 16. Bxb7 {[%emt 0:06:18]} Bd6 {[%emt 0:01:37]} 17. Rxa7 {[%emt 0:01:49]} (17. Bd2 $1 $16 {[%cal Rd2c3]} Rc2 18. Rfc1 Rxc1+ 19. Bxc1) 17... Bb8 {[%emt 0:01:44]} (17... O-O $1 $14) 18. Ra3 {[%emt 0:10:16]} O-O {[%emt 0:06:13]} (18... Ke7 $142) 19. b4 {[%emt 0:02:01]} Rc4 {[%emt 0:04:25]} 20. b5 $1 $36 {[%emt 0:00:39][%mdl 2048] Keeping Black busy.} Rxd4 {[%emt 0:00:52]} (20... Bc7 $16 21. d5 Rb8) 21. Be3 $18 {[%emt 0:00:20]} Rc4 {[%emt 0:02:14]} 22. Rb1 {[%emt 0:02:28]} Nc5 {[%emt 0:01:37]} 23. Bf3 {[%emt 0:02:00]} f5 {[%emt 0:02:32]} 24. b6 {[%emt 0:03:42]} Kf7 {[%emt 0:00:25]} 25. b7 {[%emt 0:02:04]} Kf6 {[%emt 0:00:28]} 26. Ra8 {[%emt 0:05:37]} g5 {[%emt 0:01:06]} (26... Nd7 {might work better.} 27. Rd1 Nc5) 27. Be2 {[%emt 0:02:06] A strong pair of Bishops.} Rc2 {[%emt 0:00:56]} 28. Bd1 {[%emt 0:00:14]} Rc4 {[%emt 0:00:46] [#]} 29. Rb4 {[%emt 0:01:08]} Rxb4 {[%emt 0:01:00]} 30. Bxc5 {[%emt 0:00:05]} Rxb7 {[%emt 0:04:15]} 31. Bxf8 {[%emt 0:00:36]} Rb1 {[%emt 0:00:19]} 32. Kg2 $1 {[%emt 0:00:14]} Bxg3 {[%emt 0:00:24]} 33. hxg3 {[%emt 0:01:47]} Rxd1 {[%emt 0:00:05][%mdl 4096] Endgame [#] KRB-KR} 34. Ra7 $1 {[%emt 0:00:16]} h5 {[%emt 0:00:43]} 35. Bg7+ {[%emt 0:00:08]} Kg6 {[%emt 0:00:28]} 36. Be5 {[%emt 0:00:39]} Re1 {[%emt 0:04:35]} 37. f4 {[%emt 0:01:13]} h4 $2 {[%emt 0:00:34]} (37... gxf4 38. gxf4 h4 39. Rg7+ Kh5) 38. Rg7+ {[%emt 0:00:44]} Kh6 {[%emt 0:00:05]} 39. fxg5+ {[%emt 0:00:31]} Kh5 {[%emt 0:00:17]} 40. Bf6 {[%emt 0:11:23]} hxg3 {[%emt 0:00:38]} 41. Kxg3 {[%emt 0:00:27]} e5 {[%emt 0:01:00]} 42. Rg8 {[%emt 0:03:44] Strongly threatening Kf2.} f4+ {[%emt 0:01:05]} (42... Rg1+ $18 43. Kf2 Rg4 44. Rh8+ (44. Bxe5 Rxg5 45. Rh8+ Kg6 $18) 44... Kg6) 43. Kf2 {[%emt 0:00:14]} Rc1 {[%emt 0:03:20]} 44. Bxe5 {[%emt 0:02:20]} Kg4 {[%emt 0:00:12]} 45. g6 {[%emt 0:00:10][%cal Bg5g6,Bg6g7][%mdl 32]} Rc2+ {[%emt 0:00:12]} 46. Ke1 {[%emt 0:00:47]} f3 {[%emt 0:01:13][%cal Bf4f3,Bf3f2][%mdl 32]} 47. g7 {[%emt 0:00:33]} f2+ {[%emt 0:01:29]} 48. Kf1 {[%emt 0:00:05]} Kf3 {[%emt 0:00:14]} 49. Rf8+ {[%emt 0:00:05]} Ke3 {[%emt 0:00:01] [#]} 50. Bd4+ $1 {[%emt 0:00:09][%mdl 512]} 1-0

[Event "15th Chennai GM Open 2025"]
[Site "Chennai"]
[Date "2025.01.03"]
[Round "3.8"]
[White "Dinesh Rajan M"]
[Black "Sathvik Adiga"]
[Result "0-1"]
[ECO "C54"]
[WhiteElo "2189"]
[BlackElo "2395"]
[Annotator "TA"]
[PlyCount "223"]
[EventDate "2025.01.02"]
[EventType "swiss"]
[EventCountry "IND"]
[SourceTitle "playchess.com"]
[Source "ChessBase"]
[SourceQuality "1"]
[TimeControl "5400+30"]

{[%evp 99,223,0,0,0,0,0,0,0,0,0,0,0,0,0,0,0,0,0,0,0,0,0,0,0,0,0,0,-33,-33,-33,-33,-33,-33,-33,0,-33,-33,-33,-33,-33,-33,-33,-33,-33,-33,-33,-33,-33,-33,-33,-33,-168,-168,-168,-35,-185,-35,-58,-68,-51,-35,-114,-33,-33,-33,-33,-33,-33,-28,-35,0,0,0,0,0,0,0,-302,-302,-302,-302,-302,-302,-302,-302,-302,-295,-302,-295,-284,0,-276,-249,-287,0,-395,-302,-302,-287,-302,-277,-302,-302,-844,-352,-29953,-29958,-29957,-29961,-29967,-29968,-29978,-29979,-29984,-29986,-29986,-29987,-29991,-29992,-29994,-29995,-29995,-29996,-29996,-29997,-29999]} 1. e4 {[%emt 0:05:44]} e5 {[%emt 0:00:09]} 2. Nf3 {[%emt 0:00:44]} Nc6 {[%emt 0:00:02]} 3. Bc4 {[%emt 0:00:12]} Bc5 {[%emt 0:00:05]} 4. c3 {[%emt 0:00:19]} Nf6 {[%emt 0:00:03]} 5. d4 {[%emt 0:00:40]} exd4 {[%emt 0:00:08]} 6. b4 {[%emt 0:00:24] C54: Giuoco Piano: 4 c3 Nf6, main lines with 5 d4 and 5 d3.} Be7 {[%emt 0:00:04]} 7. e5 {[%emt 0:01:02]} Ne4 {[%emt 0:00:02]} 8. b5 {[%emt 0:00:24]} Na5 {[%emt 0:00:05]} 9. Bd3 {[%emt 0:00:31]} Nxc3 {[%emt 0:00:06]} 10. Nxc3 {[%emt 0:00:03]} dxc3 {[%emt 0:00:11]} 11. Qa4 {[%emt 0:00:04]} c5 {[%emt 0:01:16]} 12. O-O {[%emt 0:04:08]} a6 {[%emt 0:00:57]} 13. bxa6 {[%emt 0:00:36]} c4 {[%emt 0:00:04]} 14. Bxc4 {[%emt 0:00:11]} Nxc4 {[%emt 0:00:05]} 15. Qxc4 {[%emt 0:00:04]} Rxa6 $146 {[%emt 0:00:06]} ({Predecessor:} 15... O-O 16. axb7 Bxb7 17. Qxc3 Ra6 18. a4 {½-½ Wadle,M (2142)-Detchin,Y Champion's League 2021/C7 email}) 16. Qxc3 {[%emt 0:00:09]} O-O {[%emt 0:00:24]} 17. Rd1 {[%emt 0:17:07]} d6 {[%emt 0:20:17]} 18. Ba3 {[%emt 0:10:27]} Bg4 {[%emt 0:16:17]} 19. h3 {[%emt 0:06:54]} Bh5 {[%emt 0:02:51]} 20. Rab1 {[%emt 0:17:24]} d5 {[%emt 0:05:28]} 21. Bxe7 {[%emt 0:00:26]} Qxe7 {[%emt 0:00:04]} 22. Rxd5 {[%emt 0:00:17]} Rxa2 {[%emt 0:02:46]} 23. Rdb5 {[%emt 0:06:29]} Ra3 {[%emt 0:05:11]} 24. R1b3 {[%emt 0:00:46]} Rxb3 {[%emt 0:02:07]} 25. Qxb3 {[%emt 0:00:06]} Bxf3 {[%emt 0:00:31]} 26. Qxf3 {[%emt 0:00:02]} Rb8 {[%emt 0:00:29]} 27. Qd5 {[%emt 0:02:51]} h6 {[%emt 0:05:59]} 28. Rb6 {[%emt 0:00:41]} Qc7 {[%emt 0:01:46]} 29. Rd6 {[%emt 0:04:08]} b5 {[%emt 0:04:20]} 30. Rd7 {[%emt 0:07:06]} Qc1+ {[%emt 0:00:02]} 31. Kh2 {[%emt 0:00:05]} Qf4+ {[%emt 0:00:07]} 32. Kg1 {[%emt 0:00:02]} b4 {[%emt 0:05:40]} 33. e6 {[%emt 0:06:41]} fxe6 {[%emt 0:00:22]} 34. Qxe6+ {[%emt 0:00:02]} Kh8 {[%emt 0:00:47]} 35. Rd3 {[%emt 0:03:10]} Qc1+ {[%emt 0:10:19]} 36. Kh2 {[%emt 0:00:01]} Qc7+ {[%emt 0:00:07]} 37. Kg1 {[%emt 0:00:01]} Rd8 {[%emt 0:01:46]} 38. Rg3 {[%emt 0:00:26]} Rb8 {[%emt 0:05:47]} 39. Rb3 {[%emt 0:02:40]} Qc2 {[%emt 0:02:14]} 40. Qf7 {[%emt 0:00:48]} Qd1+ {[%emt 0:01:07]} 41. Kh2 {[%emt 0:00:02]} Qd6+ {[%emt 0:02:18]} 42. Kg1 {[%emt 0:00:37]} Rc8 {[%emt 0:02:40]} 43. g3 {[%emt 0:02:18]} Rb8 {[%emt 0:03:36]} 44. Qc4 {[%emt 0:00:35]} Qb6 {[%emt 0:00:17]} 45. Qe4 {[%emt 0:00:50]} Qc5 {[%emt 0:00:32]} 46. Kg2 {[%emt 0:01:41]} Rf8 {[%emt 0:01:03]} 47. Rb2 {[%emt 0:00:30]} Qb6 {[%emt 0:00:51]} 48. Qe7 {[%emt 0:01:39]} Rb8 {[%emt 0:00:11]} 49. Rb3 {[%emt 0:00:00]} Qc6+ {[%emt 0:00:20]} 50. Kh2 {[%emt 0:00:24]} Qc2 {[%emt 0:01:09]} 51. Qf7 {[%emt 0:00:05]} Qc5 {[%emt 0:00:33]} 52. Rf3 {[%emt 0:01:26]} Rd8 {[%emt 0:00:55]} 53. Qb3 {[%emt 0:00:22]} Rf8 {[%emt 0:01:15]} 54. Rxf8+ {[%emt 0:01:55]} Qxf8 {[%emt 0:00:01]} 55. Kg1 {[%emt 0:00:46]} Qe7 {[%emt 0:00:57]} 56. Kf1 {[%emt 0:00:09]} Qe4 {[%emt 0:00:11]} 57. h4 {[%emt 0:00:37]} Kh7 {[%emt 0:00:57]} 58. f3 {[%emt 0:00:11]} Qd4 {[%emt 0:00:10]} 59. Ke2 {[%emt 0:00:07]} Qe5+ {[%emt 0:00:22]} 60. Kf2 {[%emt 0:00:29]} Qd6 {[%emt 0:00:08]} 61. Ke2 {[%emt 0:00:40]} Kh8 {[%emt 0:00:51]} 62. Ke3 {[%emt 0:00:47]} Qe5+ {[%emt 0:00:27]} 63. Kd3 {[%emt 0:01:14]} Qxg3 {[%emt 0:00:12]} 64. Qxb4 {[%emt 0:00:25]} Qxf3+ {[%emt 0:00:03]} 65. Kd2 {[%emt 0:00:02]} Kh7 {[%emt 0:00:41]} 66. Qb1+ {[%emt 0:00:24]} Kg8 {[%emt 0:00:02]} 67. Qa2+ {[%emt 0:01:09]} Kf8 {[%emt 0:00:06]} 68. Qc4 {[%emt 0:00:30]} Qf2+ {[%emt 0:00:51]} 69. Kd1 {[%emt 0:00:09]} Qe3 {[%emt 0:00:56]} 70. Qg4 {[%emt 0:00:07]} Kf7 {[%emt 0:00:24]} 71. Qf5+ {[%emt 0:00:22]} Ke7 {[%emt 0:00:03]} 72. Qg6 $1 {[%emt 0:00:46]} Qe5 {[%emt 0:00:16]} 73. Kc2 {[%emt 0:00:51]} Qd4 {[%emt 0:00:30]} 74. Kb1 {[%emt 0:00:47]} Qf6 {[%emt 0:00:22]} 75. Qe4+ {[%emt 0:00:05]} (75. Qg4 $1 $15) 75... Qe6 $19 {[%emt 0:00:03]} 76. Qf4 {[%emt 0:00:11]} Qd6 {[%emt 0:00:58]} (76... Qg6+ $19 77. Kc1 Qc6+ 78. Kb1 Ke8) 77. Qg4 {[%emt 0:00:34]} ({White must play} 77. Qe4+ $1 $15 Kf7 (77... Qe6 78. Qf4 $17) 78. Qf5+ Ke7 79. Qe4+ Qe6 80. Qf4) 77... Kf7 {[%emt 0:01:59]} (77... Qd3+ $1 $19 78. Kc1 g6) 78. Qf5+ $1 $15 {[%emt 0:00:13]} Qf6 {[%emt 0:00:11]} 79. Qd7+ {[%emt 0:00:04]} Kg8 {[%emt 0:00:17]} 80. Qg4 {[%emt 0:00:23]} (80. Qe8+ $15 Qf8 81. Qe4) 80... g6 {[%emt 0:01:14]} ({Black should play} 80... Qc6 $17 81. h5 Kf7) 81. Kc1 $15 {[%emt 0:01:01]} Qd6 {[%emt 0:00:32]} 82. Qe4 {[%emt 0:01:05]} Kf7 {[%emt 0:00:23]} 83. Qf3+ {[%emt 0:00:17]} Kg7 {[%emt 0:00:28]} 84. Qe4 {[%emt 0:00:07]} g5 {[%emt 0:00:46]} 85. hxg5 {[%emt 0:00:44]} hxg5 {[%emt 0:00:02]} 86. Qf5 {[%emt 0:00:47]} Kh6 {[%emt 0:00:11]} 87. Qh3+ {[%emt 0:00:49]} Kg6 {[%emt 0:00:02]} 88. Qg4 $2 {[%emt 0:00:33][%mdl 8192]} (88. Kc2 $11 {and White has nothing to worry.}) 88... Qd3 $19 {[%emt 0:00:26]} 89. Qe6+ {[%emt 0:00:34]} Kh5 {[%emt 0:00:04]} 90. Qe8+ {[%emt 0:00:16]} Kh4 {[%emt 0:00:14]} 91. Qe1+ {[%emt 0:00:38]} Kg4 {[%emt 0:00:21]} 92. Qg1+ {[%emt 0:00:36]} Kf5 {[%emt 0:00:38]} 93. Qf2+ {[%emt 0:00:10]} Kg6 {[%emt 0:00:07]} 94. Qg2 {[%emt 0:00:51] [#]} Qd4 $2 {[%emt 0:00:36]} (94... Qe3+ $1 $19 95. Kc2 Kf5 96. Qf1+ Ke5) 95. Qc6+ $2 {[%emt 0:00:30][%mdl 8192]} (95. Qc2+ $11 Kh5 96. Qh2+ Kg4 97. Qg2+ Kf5 98. Qc2+ Qe4 99. Qc5+ Kf4 100. Qf2+ Qf3 101. Qh2+ Qg3 102. Qh6) 95... Kf5 $19 {[%emt 0:00:05]} 96. Qb5+ {[%emt 0:00:28] [#]} Kg4 $2 {[%emt 0:00:11]} (96... Qe5 $1 $19 {[%cal Re5b5]} 97. Qd3+ Qe4) 97. Qe8 $2 {[%emt 0:00:30][%mdl 8192]} (97. Qe2+ $11 {and White is okay.} Kg3 98. Qe1+ Qf2 99. Qe6) 97... Kg3 {[%emt 0:00:12]} 98. Qe1+ {[%emt 0:00:22]} Qf2 {[%emt 0:00:06]} 99. Qc3+ {[%emt 0:00:25]} Kg2 {[%emt 0:00:07]} 100. Qg7 {[%emt 0:00:46]} Qf4+ {[%emt 0:00:21]} 101. Kb1 $2 {[%emt 0:00:12]} (101. Kd1) 101... g4 $19 {[%emt 0:00:15]} 102. Ka1 $2 {[%emt 0:00:29]} (102. Kc2 $19 Kf2 103. Qb2) 102... g3 {[%emt 0:00:34]} 103. Qb2+ {[%emt 0:00:47]} Kg1 {[%emt 0:00:23]} 104. Qb6+ {[%emt 0:00:34]} Qf2 {[%emt 0:00:07]} 105. Qh6 {[%emt 0:00:25]} g2 {[%emt 0:00:24]} 106. Qg5 {[%emt 0:00:37]} Qe1+ {[%emt 0:01:16]} 107. Ka2 {[%emt 0:00:05]} Kf1 {[%emt 0:00:06]} 108. Qd5 {[%emt 0:00:59]} g1=Q {[%emt 0:00:22]} 109. Qb3 {[%emt 0:00:31]} Qa7+ {[%emt 0:00:19]} 110. Qa3 {[%emt 0:00:15]} Qd2+ {[%emt 0:00:07]} 111. Kb1 {[%emt 0:00:05]} Qb7+ {[%emt 0:00:10]} 112. Qb2 {[%emt 0:01:08]} 0-1